[Event "World Prestigious University 2019"]
[Site "Tianjin"]
[Date "2019.11.26"]
[Round "1.13"]
[White "Isakov, Michael"]
[Black "Green, Michael L"]
[Result "0-1"]
[WhiteElo "2162"]
[BlackElo "2073"]
[PlyCount "70"]
[EventDate "2019.11.26"]
[EventType "team-tourn"]
[EventCountry "CHN"]
[TimeControl "1500+10"]
[WhiteClock "0:00:37"]
[BlackClock "0:03:05"]

1. d4 {[%emt 0:00:00]} Nf6 {[%emt 0:00:00]} 2. Nf3 {[%emt 0:00:00]} c5 {[%emt 0:00:00]} 3. d5 {[%emt 0:00:00]} e6 {[%emt 0:00:00]} 4. c4 {[%emt 0:00:00]} exd5 {[%emt 0:00:00]} 5. cxd5 {[%emt 0:00:00]} d6 {[%emt 0:00:00]} 6. Nc3 {[%emt 0:00:00]} g6 {[%emt 0:00:03]} 7. e4 {[%emt 0:00:14]} Bg7 {[%emt 0:00:02]} 8. Bd3 {[%emt 0:00:21]} O-O {[%emt 0:00:05]} 9. h3 {[%emt 0:00:08]} a6 {[%emt 0:00:07]} 10. a4 {[%emt 0:00:05]} Re8 {[%emt 0:00:04]} 11. O-O {[%emt 0:00:18]} Nbd7 {[%emt 0:01:57]} 12. Bf4 {[%emt 0:00:18]} Qc7 {[%emt 0:00:14]} 13. Qd2 {[%emt 0:02:51]} Rb8 14. Rae1 {[%emt 0:00:41]} c4 15. Bb1 {[%emt 0:01:42]} b5 {[%emt 0:05:04]} 16. axb5 {[%emt 0:00:02]} axb5 17. Nd4 {[%emt 0:02:52]} Ba6 {[%emt 0:02:56]} 18. b4 {[%emt 0:03:35]} cxb3 {[%emt 0:03:19]} 19. Bd3 {[%emt 0:00:00]} Nc5 {[%emt 0:05:28]} 20. Bxb5 {[%emt 0:00:40]} Nfxe4 {[%emt 0:00:39]} 21. Nxe4 {[%emt 0:01:48]} Rxe4 {[%emt 0:01:39]} 22. Rxe4 {[%emt 0:01:01]} Nxe4 {[%emt 0:00:02]} 23. Qd3 {[%emt 0:00:22]} Bxd4 {[%emt 0:01:41]} 24. Bxa6 {[%emt 0:01:31]} Bxf2+ {[%emt 0:01:06]} 25. Kh2 {[%emt 0:01:50]} f5 {[%emt 0:01:27]} 26. Rb1 {[%emt 0:02:08]} Qe7 {[%emt 0:01:19]} 27. Rxb3 {[%emt 0:01:25]} Rxb3 {[%emt 0:00:36]} 28. Qxb3 {[%emt 0:00:01]} g5 {[%emt 0:00:13]} 29. Qb8+ {[%emt 0:01:33]} Kg7 {[%emt 0:00:01]} 30. Qb2+ {[%emt 0:00:43]} Kg6 {[%emt 0:00:25]} 31. Qh8 {[%emt 0:00:45]} gxf4 {[%emt 0:00:27]} 32. Bc8 {[%emt 0:00:00]} Qe5 {[%emt 0:00:56]} 33. Qg8+ {[%emt 0:00:26]} Kh6 {[%emt 0:00:20]} 34. Qf8+ {[%emt 0:00:15]} Qg7 {[%emt 0:00:12]} 35. Qxf5 {[%emt 0:00:09]} Bg3+ {[%emt 0:00:00]} 0-1

[Event "World Prestigious University 2019"]
[Site "Tianjin"]
[Date "2019.11.26"]
[Round "1.14"]
[White "Zhong, Wei"]
[Black "Lu, Andrew H"]
[Result "0-1"]
[WhiteElo "1804"]
[BlackElo "2071"]
[PlyCount "90"]
[EventDate "2019.11.26"]
[EventType "team-tourn"]
[EventCountry "CHN"]
[TimeControl "1500+10"]
[WhiteClock "0:00:43"]
[BlackClock "0:00:24"]

1. e4 {[%emt 0:00:00]} c5 {[%emt 0:00:00]} 2. Ne2 {[%emt 0:00:00]} d6 {[%emt 0:00:00]} 3. Nbc3 {[%emt 0:00:09]} Nf6 {[%emt 0:00:00]} 4. g3 {[%emt 0:01:20]} g6 {[%emt 0:00:05]} 5. Bg2 {[%emt 0:00:04]} Bg7 {[%emt 0:00:01]} 6. d3 {[%emt 0:00:24]} Nc6 {[%emt 0:00:12]} 7. O-O {[%emt 0:00:25]} O-O {[%emt 0:01:31]} 8. h3 {[%emt 0:00:58]} Rb8 {[%emt 0:00:37]} 9. f4 {[%emt 0:00:31]} Nd7 {[%emt 0:01:02]} 10. Nd5 {[%emt 0:04:45]} e6 {[%emt 0:03:35]} 11. Ne3 {[%emt 0:03:48]} b5 {[%emt 0:03:01]} 12. c3 {[%emt 0:00:08]} Ba6 {[%emt 0:02:40]} 13. Kh2 Qc7 {[%emt 0:02:49]} 14. Rf2 {[%emt 0:04:42]} b4 {[%emt 0:00:00]} 15. c4 {[%emt 0:00:04]} f5 {[%emt 0:00:00]} 16. Qa4 {[%emt 0:01:30]} Bb7 {[%emt 0:01:35]} 17. Rb1 {[%emt 0:01:45]} Nd4 {[%emt 0:00:41]} 18. Qd1 {[%emt 0:02:06]} Nb6 {[%emt 0:02:20]} 19. Rf1 {[%emt 0:01:42]} a5 {[%emt 0:00:53]} 20. b3 {[%emt 0:01:04]} Rbe8 {[%emt 0:00:40]} 21. Nc2 {[%emt 0:00:34]} Nxe2 {[%emt 0:02:37]} 22. Qxe2 {[%emt 0:00:02]} e5 {[%emt 0:00:10]} 23. fxe5 {[%emt 0:01:18]} Bxe5 {[%emt 0:00:33]} 24. Bf4 {[%emt 0:00:18]} d5 {[%emt 0:00:47]} 25. Rbe1 {[%emt 0:00:55]} Bxf4 {[%emt 0:01:35]} 26. Rxf4 {[%emt 0:00:13]} fxe4 {[%emt 0:00:08]} 27. Rxf8+ {[%emt 0:00:17]} Rxf8 {[%emt 0:00:10]} 28. dxe4 {[%emt 0:01:25]} dxe4 {[%emt 0:01:22]} 29. Bxe4 {[%emt 0:00:00]} Bxe4 {[%emt 0:00:03]} 30. Qxe4 {[%emt 0:00:00]} Rf2+ {[%emt 0:00:01]} 31. Kh1 {[%emt 0:00:00]} Qxg3 {[%emt 0:00:09]} 32. Qe6+ {[%emt 0:00:00]} Kg7 {[%emt 0:00:23]} 33. Qe7+ {[%emt 0:00:00]} Kh6 {[%emt 0:00:17]} 34. Qe3+ {[%emt 0:00:00]} Qxe3 {[%emt 0:00:01]} 35. Nxe3 {[%emt 0:00:00]} Rxa2 {[%emt 0:00:12]} 36. Ng4+ {[%emt 0:00:10]} Kg5 {[%emt 0:00:11]} 37. Re5+ {[%emt 0:00:18]} Kf4 {[%emt 0:00:07]} 38. Re6 {[%emt 0:00:12]} Nd7 {[%emt 0:00:30]} 39. Nf6 {[%emt 0:00:11]} Kf5 {[%emt 0:00:18]} 40. Nxd7 {[%emt 0:00:10]} Kxe6 {[%emt 0:00:01]} 41. Nxc5+ {[%emt 0:00:01]} Ke5 {[%emt 0:00:13]} 42. Na4 {[%emt 0:00:06]} Ra3 {[%emt 0:00:02]} 43. Nc5 {[%emt 0:00:22]} Kf4 {[%emt 0:00:03]} 44. Ne6+ {[%emt 0:00:03]} Kg3 {[%emt 0:00:02]} 45. Nd4 {[%emt 0:00:06]} Ra1# 0-1

[Event "World Prestigious University 2019"]
[Site "Tianjin"]
[Date "2019.11.26"]
[Round "1.15"]
[White "Papanek, Ella"]
[Black "Serbanescu, Diana-Maria"]
[Result "0-1"]
[WhiteElo "1777"]
[BlackElo "1990"]
[PlyCount "128"]
[EventDate "2019.11.26"]
[EventType "team-tourn"]
[EventCountry "CHN"]
[TimeControl "1500+10"]
[WhiteClock "0:02:44"]
[BlackClock "0:02:03"]

1. d4 {[%emt 0:00:00]} d6 {[%emt 0:00:00]} 2. c4 {[%emt 0:00:08]} Nf6 {[%emt 0:00:00]} 3. Nc3 {[%emt 0:00:03]} g6 {[%emt 0:00:00]} 4. e4 {[%emt 0:00:06]} Bg7 {[%emt 0:00:00]} 5. Nge2 {[%emt 0:00:05]} e5 {[%emt 0:00:41]} 6. dxe5 {[%emt 0:01:38]} dxe5 {[%emt 0:00:02]} 7. Qxd8+ {[%emt 0:00:11]} Kxd8 {[%emt 0:00:01]} 8. Bg5 {[%emt 0:00:21]} c6 {[%emt 0:00:13]} 9. O-O-O+ {[%emt 0:00:37]} Kc7 {[%emt 0:00:02]} 10. h3 {[%emt 0:03:12]} Be6 {[%emt 0:02:08]} 11. b3 {[%emt 0:00:55]} Nbd7 {[%emt 0:03:28]} 12. Be3 {[%emt 0:01:16]} Rhe8 {[%emt 0:01:26]} 13. g4 {[%emt 0:04:13]} h5 {[%emt 0:01:41]} 14. gxh5 {[%emt 0:03:27]} Nxh5 {[%emt 0:00:06]} 15. Rg1 {[%emt 0:00:07]} b6 {[%emt 0:02:47]} 16. Ng3 {[%emt 0:01:33]} Nf4 {[%emt 0:01:52]} 17. Nf5 {[%emt 0:02:00]} Bf6 {[%emt 0:01:13]} 18. Nd6 {[%emt 0:01:06]} Rh8 {[%emt 0:00:02]} 19. Rg3 {[%emt 0:03:41]} Be7 {[%emt 0:02:36]} 20. c5 {[%emt 0:01:51]} Nxc5 {[%emt 0:06:53]} 21. Nc4 {[%emt 0:00:02]} Nd7 {[%emt 0:00:12]} 22. Nxe5 {[%emt 0:00:36]} Nh5 {[%emt 0:01:25]} 23. Nxd7 {[%emt 0:00:45]} Bxd7 {[%emt 0:00:01]} 24. Rf3 {[%emt 0:00:11]} Be6 {[%emt 0:00:01]} 25. Bd4 {[%emt 0:00:28]} Rhd8 {[%emt 0:00:02]} 26. Ba6 {[%emt 0:00:10]} f6 {[%emt 0:01:00]} 27. e5 {[%emt 0:00:11]} f5 {[%emt 0:00:05]} 28. Kb2 {[%emt 0:00:15]} Rd7 {[%emt 0:00:10]} 29. Rfd3 {[%emt 0:00:07]} Rad8 {[%emt 0:00:07]} 30. Kc2 {[%emt 0:00:19]} Nf4 {[%emt 0:00:04]} 31. R3d2 {[%emt 0:00:05]} Nxh3 {[%emt 0:00:07]} 32. a4 {[%emt 0:00:05]} Ng5 {[%emt 0:00:15]} 33. Be3 {[%emt 0:00:22]} Rxd2+ {[%emt 0:00:21]} 34. Rxd2 {[%emt 0:00:02]} Rxd2+ {[%emt 0:00:19]} 35. Bxd2 {[%emt 0:00:02]} Nf3 {[%emt 0:00:05]} 36. Bf4 {[%emt 0:00:02]} Nd4+ {[%emt 0:00:07]} 37. Kb2 {[%emt 0:00:09]} g5 {[%emt 0:00:16]} 38. Be3 {[%emt 0:00:12]} Nxb3 {[%emt 0:00:12]} 39. Ne2 {[%emt 0:00:17]} Nc5 {[%emt 0:00:29]} 40. Bxc5 {[%emt 0:00:15]} Bxc5 {[%emt 0:00:02]} 41. f3 {[%emt 0:00:11]} f4 {[%emt 0:00:32]} 42. Nc3 {[%emt 0:00:23]} Bd4 {[%emt 0:00:02]} 43. Kc2 {[%emt 0:00:05]} Bxe5 {[%emt 0:00:02]} 44. Ne4 {[%emt 0:00:01]} g4 {[%emt 0:00:15]} 45. fxg4 {[%emt 0:00:05]} Bxg4 {[%emt 0:00:01]} 46. Kd2 {[%emt 0:00:11]} Bf5 {[%emt 0:00:15]} 47. Ng5 {[%emt 0:00:03]} Bf6 {[%emt 0:00:12]} 48. Nf3 {[%emt 0:00:04]} Kd6 {[%emt 0:00:02]} 49. Bf1 {[%emt 0:00:19]} Kc5 {[%emt 0:00:09]} 50. Ne1 {[%emt 0:00:10]} Kb4 {[%emt 0:00:06]} 51. Nd3+ {[%emt 0:00:02]} Bxd3 {[%emt 0:00:03]} 52. Bxd3 {[%emt 0:00:04]} Kxa4 {[%emt 0:00:02]} 53. Be4 {[%emt 0:00:07]} c5 {[%emt 0:00:09]} 54. Kc2 {[%emt 0:00:04]} Kb4 {[%emt 0:00:02]} 55. Bd5 {[%emt 0:00:02]} b5 {[%emt 0:00:03]} 56. Kd3 {[%emt 0:00:10]} Be5 {[%emt 0:00:07]} 57. Ke4 {[%emt 0:00:02]} Bc7 {[%emt 0:00:02]} 58. Ba2 {[%emt 0:00:08]} c4 {[%emt 0:00:02]} 59. Kd4 {[%emt 0:00:03]} a5 {[%emt 0:00:05]} 60. Bb1 {[%emt 0:00:02]} Bb6+ {[%emt 0:00:05]} 61. Ke4 {[%emt 0:00:05]} Be3 {[%emt 0:00:02]} 62. Bc2 {[%emt 0:00:03]} Kc3 {[%emt 0:00:02]} 63. Bd1 {[%emt 0:00:03]} a4 {[%emt 0:00:04]} 64. Kf3 {[%emt 0:00:05]} a3 {[%emt 0:00:01]} 0-1

[Event "World Prestigious University 2019"]
[Site "Tianjin"]
[Date "2019.11.26"]
[Round "1.16"]
[White "Weichao, Chu"]
[Black "Kukhmazov, Arsen"]
[Result "0-1"]
[WhiteElo "2423"]
[BlackElo "2377"]
[PlyCount "91"]
[EventDate "2019.11.26"]
[EventType "team-tourn"]
[EventCountry "CHN"]
[TimeControl "1500+10"]
[WhiteClock "0:02:50"]
[BlackClock "0:02:20"]

1. Nf3 {[%emt 0:00:00]} d5 {[%emt 0:00:00]} 2. g3 {[%emt 0:00:00]} c6 {[%emt 0:00:08]} 3. Bg2 {[%emt 0:00:01]} Bf5 {[%emt 0:00:01]} 4. O-O {[%emt 0:00:10]} e6 {[%emt 0:00:01]} 5. d3 {[%emt 0:00:09]} h6 {[%emt 0:00:01]} 6. c4 {[%emt 0:00:10]} dxc4 {[%emt 0:00:01]} 7. dxc4 {[%emt 0:00:02]} Qxd1 {[%emt 0:00:01]} 8. Rxd1 {[%emt 0:00:02]} Bc2 {[%emt 0:00:00]} 9. Re1 {[%emt 0:00:02]} Nf6 {[%emt 0:00:13]} 10. Nc3 {[%emt 0:00:17]} Bh7 {[%emt 0:04:22]} 11. b3 {[%emt 0:00:10]} Nbd7 {[%emt 0:00:57]} 12. Bb2 {[%emt 0:01:02]} O-O-O {[%emt 0:01:31]} 13. h4 {[%emt 0:01:28]} Bd6 {[%emt 0:02:01]} 14. Red1 {[%emt 0:01:24]} Bc7 {[%emt 0:01:21]} 15. Na4 {[%emt 0:00:18]} Rhg8 {[%emt 0:01:02]} 16. Rac1 {[%emt 0:01:06]} Ne4 {[%emt 0:01:46]} 17. b4 {[%emt 0:03:04]} g5 {[%emt 0:03:40]} 18. hxg5 {[%emt 0:01:49]} hxg5 {[%emt 0:00:01]} 19. Nc3 {[%emt 0:00:02]} Nxc3 {[%emt 0:02:10]} 20. Bxc3 {[%emt 0:00:02]} g4 {[%emt 0:01:04]} 21. Nd4 {[%emt 0:00:13]} Nb6 {[%emt 0:01:43]} 22. c5 {[%emt 0:02:40]} Nd5 {[%emt 0:00:52]} 23. Be1 {[%emt 0:00:02]} e5 {[%emt 0:00:28]} 24. Nb5 {[%emt 0:00:16]} a6 {[%emt 0:00:19]} 25. Nd6+ {[%emt 0:02:15]} Bxd6 {[%emt 0:00:01]} 26. cxd6 {[%emt 0:00:02]} Nb6 {[%emt 0:00:52]} 27. b5 {[%emt 0:02:12]} axb5 {[%emt 0:00:01]} 28. Ba5 {[%emt 0:00:01]} Nc4 {[%emt 0:00:01]} 29. Bxd8 {[%emt 0:00:03]} Rxd8 {[%emt 0:00:00]} 30. a4 {[%emt 0:00:55]} Nb2 {[%emt 0:00:33]} 31. Rd5 {[%emt 0:00:23]} bxa4 {[%emt 0:00:52]} 32. Rb5 {[%emt 0:02:35]} a3 {[%emt 0:00:01]} 33. Rb3 {[%emt 0:00:01]} Rxd6 {[%emt 0:00:58]} 34. Rxa3 {[%emt 0:00:03]} Bf5 {[%emt 0:01:06]} 35. Rb3 {[%emt 0:01:44]} Rd2 {[%emt 0:00:20]} 36. Kf1 {[%emt 0:00:06]} Be6 {[%emt 0:00:03]} 37. Rb4 {[%emt 0:00:02]} Rd1+ {[%emt 0:00:02]} 38. Rxd1 {[%emt 0:00:06]} Nxd1 {[%emt 0:00:00]} 39. Ke1 {[%emt 0:00:53]} Nc3 {[%emt 0:00:01]} 40. Kd2 {[%emt 0:00:02]} Nb5 {[%emt 0:00:41]} 41. e3 {[%emt 0:01:13]} Kc7 {[%emt 0:00:04]} 42. f4 {[%emt 0:01:47]} gxf3 {[%emt 0:00:08]} 43. Bxf3 {[%emt 0:00:01]} Nd6 {[%emt 0:00:01]} 44. Rb1 {[%emt 0:01:01]} c5 {[%emt 0:00:06]} 45. Rc1 {[%emt 0:00:16]} Nc4+ {[%emt 0:00:06]} 46. Kd3 {[%emt 0:00:17]} 0-1

[Event "World Prestigious University 2019"]
[Site "Tianjin"]
[Date "2019.11.26"]
[Round "1.17"]
[White "Tarasov, Alexandr"]
[Black "Wei, Siyu"]
[Result "0-1"]
[WhiteElo "2348"]
[BlackElo "2106"]
[PlyCount "64"]
[EventDate "2019.11.26"]
[EventType "team-tourn"]
[EventCountry "CHN"]
[TimeControl "1500+10"]
[WhiteClock "0:03:16"]
[BlackClock "0:00:26"]

1. d4 {[%emt 0:00:00]} d5 {[%emt 0:00:01]} 2. c4 {[%emt 0:00:06]} e6 {[%emt 0:00:13]} 3. Nc3 {[%emt 0:00:04]} c6 {[%emt 0:00:07]} 4. cxd5 {[%emt 0:01:14]} cxd5 {[%emt 0:00:15]} 5. Bf4 {[%emt 0:03:00]} Bd6 {[%emt 0:01:21]} 6. e3 {[%emt 0:00:31]} Nc6 {[%emt 0:01:42]} 7. Nf3 {[%emt 0:00:11]} Nge7 {[%emt 0:00:45]} 8. Bd3 {[%emt 0:01:18]} Ng6 {[%emt 0:00:56]} 9. Bxd6 {[%emt 0:07:48]} Qxd6 {[%emt 0:00:03]} 10. O-O {[%emt 0:00:37]} O-O {[%emt 0:00:45]} 11. a3 {[%emt 0:00:43]} Rd8 {[%emt 0:03:38]} 12. b4 {[%emt 0:03:12]} e5 {[%emt 0:01:40]} 13. Bxg6 {[%emt 0:02:03]} hxg6 {[%emt 0:00:05]} 14. b5 {[%emt 0:02:09]} exd4 {[%emt 0:02:02]} 15. Nxd4 {[%emt 0:00:04]} Ne5 {[%emt 0:02:10]} 16. h3 {[%emt 0:00:08]} Be6 {[%emt 0:00:37]} 17. Qb3 {[%emt 0:00:44]} g5 {[%emt 0:02:43]} 18. Rfd1 {[%emt 0:01:34]} g4 {[%emt 0:00:42]} 19. Nxe6 {[%emt 0:00:20]} fxe6 {[%emt 0:00:02]} 20. e4 {[%emt 0:00:35]} d4 {[%emt 0:01:48]} 21. Ne2 {[%emt 0:00:05]} d3 {[%emt 0:00:20]} 22. Nf4 {[%emt 0:00:19]} Kf7 {[%emt 0:00:35]} 23. hxg4 {[%emt 0:00:26]} g5 {[%emt 0:01:31]} 24. Nh3 {[%emt 0:00:03]} Nxg4 {[%emt 0:00:02]} 25. Nxg5+ {[%emt 0:00:23]} Ke7 {[%emt 0:00:02]} 26. Qb4 {[%emt 0:00:28]} Rac8 {[%emt 0:00:42]} 27. Qxd6+ {[%emt 0:00:40]} Rxd6 {[%emt 0:00:01]} 28. Nf3 {[%emt 0:00:14]} Rc2 {[%emt 0:01:23]} 29. Ne1 {[%emt 0:00:26]} Nxf2 {[%emt 0:00:31]} 30. Nxc2 {[%emt 0:00:20]} Nxd1 {[%emt 0:00:02]} 31. Nb4 {[%emt 0:00:03]} Nc3 {[%emt 0:00:08]} 32. e5 {[%emt 0:00:06]} Rd8 {[%emt 0:00:27]} 0-1

[Event "World Prestigious University 2019"]
[Site "Tianjin"]
[Date "2019.11.26"]
[Round "1.18"]
[White "Lu, Hongyi"]
[Black "Bogachkova, Alena"]
[Result "0-1"]
[WhiteElo "1862"]
[BlackElo "2080"]
[PlyCount "72"]
[EventDate "2019.11.26"]
[EventType "team-tourn"]
[EventCountry "CHN"]
[TimeControl "1500+10"]
[WhiteClock "0:00:35"]
[BlackClock "0:00:23"]

1. e4 {[%emt 0:00:00]} c5 {[%emt 0:00:00]} 2. Nf3 {[%emt 0:00:00]} a6 {[%emt 0:00:00]} 3. d4 {[%emt 0:00:01]} cxd4 {[%emt 0:00:00]} 4. Nxd4 {[%emt 0:00:02]} Nf6 {[%emt 0:00:03]} 5. Nc3 {[%emt 0:00:03]} e5 {[%emt 0:00:04]} 6. Nb3 {[%emt 0:00:58]} Bb4 {[%emt 0:00:21]} 7. Bg5 {[%emt 0:01:22]} h6 {[%emt 0:05:10]} 8. Bxf6 {[%emt 0:01:40]} Bxc3+ {[%emt 0:01:31]} 9. bxc3 {[%emt 0:00:03]} Qxf6 {[%emt 0:00:02]} 10. Bc4 {[%emt 0:03:26]} O-O {[%emt 0:03:59]} 11. O-O {[%emt 0:00:38]} Nc6 {[%emt 0:03:27]} 12. a4 {[%emt 0:03:35]} d6 {[%emt 0:01:56]} 13. Bd5 {[%emt 0:02:54]} Ne7 {[%emt 0:03:54]} 14. Na5 {[%emt 0:05:45]} Rb8 {[%emt 0:02:17]} 15. Rb1 {[%emt 0:01:28]} b6 {[%emt 0:01:42]} 16. Nc6 {[%emt 0:01:57]} Nxc6 {[%emt 0:00:12]} 17. Bxc6 {[%emt 0:00:02]} Qe7 {[%emt 0:00:09]} 18. Bd5 {[%emt 0:00:49]} Qc7 {[%emt 0:00:25]} 19. c4 {[%emt 0:00:36]} Bd7 {[%emt 0:00:50]} 20. c3 {[%emt 0:00:33]} Bc6 {[%emt 0:00:52]} 21. Qb3 {[%emt 0:00:58]} Rfc8 {[%emt 0:00:17]} 22. Rfc1 {[%emt 0:00:42]} Bxd5 {[%emt 0:00:08]} 23. cxd5 {[%emt 0:00:04]} Qc4 {[%emt 0:00:16]} 24. f3 {[%emt 0:00:18]} b5 {[%emt 0:00:18]} 25. axb5 {[%emt 0:00:29]} Qc5+ {[%emt 0:00:24]} 26. Kf1 {[%emt 0:00:36]} Rxb5 {[%emt 0:00:02]} 27. Qc2 {[%emt 0:00:05]} Qe3 {[%emt 0:00:21]} 28. Rxb5 {[%emt 0:00:03]} axb5 {[%emt 0:00:01]} 29. Rb1 {[%emt 0:00:24]} Rxc3 {[%emt 0:00:05]} 30. Qe2 {[%emt 0:00:12]} Rc1+ {[%emt 0:00:43]} 31. Rxc1 {[%emt 0:00:03]} Qxc1+ {[%emt 0:00:01]} 32. Kf2 {[%emt 0:00:13]} b4 {[%emt 0:00:26]} 33. Qd3 {[%emt 0:00:08]} g6 {[%emt 0:00:12]} 34. Ke2 {[%emt 0:00:13]} Qg1 {[%emt 0:00:08]} 35. Qb3 {[%emt 0:00:15]} Qxg2+ {[%emt 0:00:03]} 36. Ke3 {[%emt 0:00:02]} Qg1+ {[%emt 0:00:06]} 0-1

[Event "World Prestigious University 2019"]
[Site "Tianjin"]
[Date "2019.11.26"]
[Round "2.1"]
[White "TannerAustin, McNamara"]
[Black "Kukhmazov, Arsen"]
[Result "0-1"]
[WhiteElo "1983"]
[BlackElo "2377"]
[PlyCount "138"]
[EventDate "2019.11.26"]
[EventType "team-tourn"]
[EventCountry "CHN"]
[TimeControl "1500+10"]
[WhiteClock "0:04:30"]
[BlackClock "0:01:34"]

1. d4 {[%emt 0:00:00]} Nf6 {[%emt 0:00:02]} 2. c4 {[%emt 0:00:00]} c6 {[%emt 0:00:28]} 3. Nc3 {[%emt 0:00:13]} d5 {[%emt 0:00:01]} 4. Nf3 {[%emt 0:00:14]} dxc4 {[%emt 0:00:11]} 5. a4 {[%emt 0:00:05]} Bf5 {[%emt 0:00:01]} 6. e3 {[%emt 0:00:12]} e6 {[%emt 0:00:00]} 7. Bxc4 {[%emt 0:00:02]} Bb4 {[%emt 0:00:01]} 8. O-O {[%emt 0:00:18]} Nbd7 {[%emt 0:00:01]} 9. Qe2 {[%emt 0:00:25]} Bg6 {[%emt 0:00:14]} 10. e4 {[%emt 0:04:07]} O-O {[%emt 0:00:01]} 11. e5 {[%emt 0:00:09]} Nd5 {[%emt 0:00:02]} 12. Nxd5 {[%emt 0:00:04]} cxd5 {[%emt 0:00:01]} 13. Bd3 {[%emt 0:00:01]} Bh5 {[%emt 0:00:39]} 14. Qe3 {[%emt 0:01:00]} Re8 {[%emt 0:02:21]} 15. Ng5 {[%emt 0:03:02]} Nf8 {[%emt 0:00:23]} 16. Qh3 {[%emt 0:00:21]} Bg6 {[%emt 0:00:03]} 17. Bxg6 {[%emt 0:00:26]} fxg6 {[%emt 0:00:01]} 18. Be3 {[%emt 0:01:06]} Rc8 {[%emt 0:00:55]} 19. Rac1 {[%emt 0:01:35]} h6 {[%emt 0:00:07]} 20. Nf3 {[%emt 0:00:05]} g5 {[%emt 0:00:01]} 21. Qh5 {[%emt 0:00:23]} Qd7 {[%emt 0:00:12]} 22. h4 {[%emt 0:02:50]} gxh4 {[%emt 0:00:01]} 23. Nxh4 {[%emt 0:00:01]} Rxc1 {[%emt 0:00:01]} 24. Rxc1 {[%emt 0:00:18]} Rc8 {[%emt 0:00:04]} 25. Rxc8 {[%emt 0:01:03]} Qxc8 {[%emt 0:00:01]} 26. Qg4 {[%emt 0:00:13]} Kh7 {[%emt 0:00:29]} 27. Qd1 {[%emt 0:02:23]} Qc4 {[%emt 0:00:22]} 28. Qb1+ {[%emt 0:00:25]} g6 {[%emt 0:05:36]} 29. Qc1 {[%emt 0:00:05]} g5 {[%emt 0:04:04]} 30. Nf3 {[%emt 0:02:36]} Qxc1+ {[%emt 0:01:08]} 31. Bxc1 {[%emt 0:00:01]} g4 {[%emt 0:00:01]} 32. Bd2 {[%emt 0:01:22]} gxf3 {[%emt 0:02:42]} 33. Bxb4 {[%emt 0:00:02]} Nd7 {[%emt 0:00:00]} 34. g4 {[%emt 0:00:48]} Kg6 {[%emt 0:00:36]} 35. Kh2 {[%emt 0:00:05]} h5 {[%emt 0:00:01]} 36. gxh5+ {[%emt 0:00:04]} Kxh5 {[%emt 0:00:00]} 37. Kg3 {[%emt 0:00:01]} Kg5 {[%emt 0:00:01]} 38. Kxf3 {[%emt 0:00:01]} Nb8 {[%emt 0:00:28]} 39. Ke3 {[%emt 0:00:31]} Nc6 {[%emt 0:00:13]} 40. Bd2 {[%emt 0:00:58]} a6 {[%emt 0:00:08]} 41. f3 {[%emt 0:02:03]} Ne7 {[%emt 0:01:17]} 42. Kd3+ {[%emt 0:00:29]} Kh4 {[%emt 0:00:27]} 43. Be1+ {[%emt 0:00:39]} Kh3 {[%emt 0:00:57]} 44. Bc3 {[%emt 0:00:20]} Kg3 {[%emt 0:00:43]} 45. Ke2 {[%emt 0:00:16]} Nf5 {[%emt 0:00:13]} 46. Be1+ {[%emt 0:00:55]} Kh3 {[%emt 0:00:47]} 47. Bc3 {[%emt 0:00:16]} Kg2 {[%emt 0:00:05]} 48. f4 {[%emt 0:00:14]} Kg3 {[%emt 0:00:03]} 49. Kd3 {[%emt 0:00:01]} Kxf4 {[%emt 0:00:17]} 50. Bd2+ {[%emt 0:00:01]} Kf3 {[%emt 0:00:01]} 51. b3 {[%emt 0:00:09]} Ne7 {[%emt 0:00:34]} 52. Be1 {[%emt 0:00:14]} Nc6 {[%emt 0:01:37]} 53. a5 {[%emt 0:00:02]} Na7 {[%emt 0:01:20]} 54. Bc3 {[%emt 0:00:20]} Kf2 {[%emt 0:00:14]} 55. Bb2 {[%emt 0:00:16]} Nb5 {[%emt 0:00:41]} 56. Bc1 {[%emt 0:00:03]} Ke1 {[%emt 0:00:03]} 57. Bd2+ {[%emt 0:00:08]} Kd1 {[%emt 0:00:01]} 58. Be3 {[%emt 0:00:02]} Na7 {[%emt 0:00:14]} 59. Bg5 {[%emt 0:00:16]} Nc6 {[%emt 0:00:02]} 60. Bd2 {[%emt 0:00:01]} Nxd4 {[%emt 0:00:12]} 61. Kxd4 {[%emt 0:00:14]} Kxd2 {[%emt 0:00:01]} 62. b4 {[%emt 0:00:02]} Kc2 {[%emt 0:00:14]} 63. Kc5 {[%emt 0:00:08]} Kc3 {[%emt 0:00:02]} 64. b5 {[%emt 0:00:03]} axb5 {[%emt 0:00:01]} 65. Kb6 {[%emt 0:00:02]} b4 {[%emt 0:00:08]} 66. Kxb7 {[%emt 0:00:04]} b3 {[%emt 0:00:01]} 67. a6 {[%emt 0:00:00]} b2 {[%emt 0:00:01]} 68. a7 {[%emt 0:00:01]} b1=Q+ {[%emt 0:00:02]} 69. Kc7 {[%emt 0:00:02]} Qa2 {[%emt 0:00:01]} 0-1